Cogmind - Beta 14 @@@ ROGUE MODE // 2024.10.10 @ 12:56:53 Player: celerysam Result: Destroyed by G-47 Trooper with Particle Gun Performance ------------- Evolutions (1) 500 Regions Visited (3) 600 Robots Destroyed (22) 110 Value Destroyed (454) 454 Prototype IDs (0) 0 Alien Tech Used (0) 0 Bonus (0) 0 TOTAL SCORE: 1664 Bonus ------- None Cogmind --------- Core Integrity 0/400 Matter 280/300 Energy 92/250 System Corruption 0% Temperature Warm (104) Movement Treading (160) Location -9/Mines Parts ------- > --- POWER (1) -------- Ion Engine > --- PROPULSION (3) --- Light Treads Light Treads Light Treads > --- UTILITY (3) ------ Heat Sink Large Storage Unit Targeting Computer > --- WEAPON (2) ------- EM Pulse Gun Particle Gun > --- INVENTORY (15) --- Light Ion Engine Improved Ion Engine Compact Wheel VTOL Module Improved Cooling System Coolant Injector EM Pulse Gun Plasma Cannon Light Assault Rifle Remote Datajack Greatsword Peak State ------------ > --- POWER ------------ Improved Ion Engine > --- PROPULSION ------- Wheel Compact Wheel Compact Wheel > --- UTILITY ---------- Heat Sink Heat Sink Small Storage Unit > --- WEAPON ----------- Particle Gun Shotgun > --- INVENTORY -------- Light Ion Engine Improved Ion Engine Light Treads Light Treads Light Treads Compact Wheel VTOL Module Light Assault Rifle [Rating: 13] Favorites ----------- Power Ion Engine Engine Ion Engine Propulsion Compact Wheel Treads Light Treads Leg Aluminum Leg Wheel Compact Wheel Utility Small Storage Unit Device Heat Sink Storage Small Storage Unit Processor Targeting Computer Weapon Assault Rifle Energy Gun Particle Gun Ballistic Gun Assault Rifle Build | -11 -10 -9 -9 ------- Run | Yrd Mat Mat Min Slots Evolved 2 | . . 2 . Power . | . . . . Propulsion 1 | . . 1 . Utility 1 | . . 1 . Weapon . | . . . . Parts Attached 31 | 6 1 19 5 Power 4 | 1 . 2 1 Engine 4 | 1 . 2 1 Core . | . . . . Reactor . | . . . . Propulsion 11 | 2 . 6 3 Treads 3 | . . . 3 Leg 3 | . . 3 . Wheel 5 | 2 . 3 . Hover . | . . . . Flight . | . . . . Utility 6 | 1 1 4 . Device 3 | . 1 2 . Storage 2 | 1 . 1 . Processor 1 | . . 1 . Hackware . | . . . . Protection . | . . . . Artifact . | . . . . Weapon 10 | 2 . 7 1 Energy Gun 5 | . . 4 1 Energy Cannon . | . . . . Ballistic Gun 5 | 2 . 3 . Ballistic Cannon . | . . . . Launcher . | . . . . Special Weapon . | . . . . Impact Weapon . | . . . . Slashing Weapon . | . . . . Piercing Weapon . | . . . . Special Melee Weapon . | . . . . Unidentified Prototypes . | . . . . Parts Lost 16 | . . 11 5 Power 3 | . . 2 1 Propulsion 6 | . . 3 3 Utility 1 | . . 1 . Weapon 6 | . . 5 1 Highest Loss Streak 11 | . . 11 5 To Critical Strikes . | . . . . Average Slot Usage (%) 82 | . 98 74 80 Engine 8 | . 14 8 1 Treads 6 | . . . 22 Leg 3 | . . 8 . Wheel 15 | . 28 18 1 Device 9 | . 12 5 11 Storage 11 | . 14 11 11 Processor 4 | . . 1 11 Energy Gun 10 | . . 9 21 Ballistic Gun 12 | . 28 11 . Peak Build Rating 13 | 6 7 13 13 Average Rating 8 | 4 6 8 9 On Entrance 6 | . 6 7 13 Naked Turns . | . . . . Heaviest Build 34 | 14 15 34 34 Greatest Support 60 | 26 26 42 60 Greatest Overweight (x) 2 | 1 . 2 1 Average Overweight (x) . | . . . . Largest Inventory Capacity 15 | 8 8 15 15 Average Capacity 10 | 7 8 8 15 Most Carried 14 | 6 8 10 14 Average Carried 7 | 3 7 7 9 Final Capacity 15 | 8 8 15 15 Final Carried 12 | 6 8 10 12 Class Distribution -------------------- 93% | Mutant 6% | Scavenger-Mutant Dominant Class ---------------- Mutant | -10/Materials Mutant | -9/Materials Mutant | -9/Mines Resources | -11 -10 -9 -9 ----------- Run | Yrd Mat Mat Min Matter Collected 562 | 260 31 220 51 Remotely . | . . . . Salvage Created 591 | . 42 403 146 Parts 34 | . 5 21 8 Haulers Intercepted . | . . . . Recyclers Shooed . | . . . . Parts Field Recycled . | . . . . Retrieved Matter . | . . . . Parts Self-Destructed . | . . . . Prevented . | . . . . Kills | -11 -10 -9 -9 ------- Run | Yrd Mat Mat Min Combat Hostiles Destroyed 22 | . 3 12 7 Guns 21 | . 3 12 6 AOE 1 | . . . 1 Classes Destroyed 3 | . 1 2 . Swarmer 15 | . 3 6 6 Grunt 4 | . . 3 1 Sentry 3 | . . 3 . Best Kill Streak 6 | . 3 6 4 Combat Bots Only 6 | . 3 6 4 Max Kills in Single Turn 2 | . 1 1 2 Gunslinging 1 | . . . 1 Exploded 1 | . . . 1 Melee . | . . . . Uniques/NPCs Destroyed . | . . . . Combat | -11 -10 -9 -9 -------- Run | Yrd Mat Mat Min Hostile Shots Fired 261 | . 23 163 75 Missed 75 | . 5 45 25 Damage Taken 1847 | . 139 1281 427 Core 422 | . 22 351 49 Absorbed by Shields . | . . . . Core Remaining (%) 95 | 100 91 . . Volleys Fired 61 | . 8 37 16 Largest 2 | . 2 2 2 Hottest 115 | . 40 115 105 Shots Fired 112 | . 16 64 32 Gun 112 | . 16 64 32 Cannon . | . . . . Launcher . | . . . . Special . | . . . . Kinetic 48 | . 16 28 4 Thermal 44 | . . 28 16 Explosive . | . . . . Electromagnetic 20 | . . 8 12 Robot Hit Streak 15 | . 4 15 6 Robot Miss Streak 5 | . 2 5 3 Penetration Max . | . . . . Secondary Targets 5 | . . 2 3 Max Gunslinging Chain 1 | . . 1 1 Shots Hit Robots 70 | . 7 43 20 Core Hits 33 | . 3 21 9 Critical Kills . | . . . . Critical Parts Destroyed . | . . . . Critical Strikes . | . . . . Melee Attacks . | . . . . Impact . | . . . . Slashing . | . . . . Piercing . | . . . . Sneak Attacks . | . . . . Combat Hostiles . | . . . . Follow-up Attacks . | . . . . Damage Inflicted 985 | . 83 582 320 Guns 957 | . 83 582 292 Cannons . | . . . . Explosions 28 | . . . 28 Melee . | . . . . Ramming . | . . . . Kinetic 316 | . 83 203 30 Thermal 476 | . . 296 180 Explosive . | . . . . Electromagnetic 193 | . . 83 110 Impact . | . . . . Slashing . | . . . . Piercing . | . . . . Highest Corruption . | . . . . Average Corruption . | . . . . Corruption Purged . | . . . . Corruption Blocked . | . . . . Overload Shots . | . . . . Overflow Damage . | . . . . Projectiles . | . . . . Explosions . | . . . . Melee . | . . . . Knockbacks . | . . . . Impact . | . . . . Kinetic . | . . . . Secondary . | . . . . Self-Inflicted Damage . | . . . . Shots . | . . . . Rammed . | . . . . Targets Rammed . | . . . . Kicked . | . . . . Crushed . | . . . . Highest Temperature 185 | . . 185 95 Average Temperature 41 | . . 44 34 Received Heat Transfer 435 | . . 342 93 Siege Activations . | . . . . Robots Corrupted . | . . . . Combat Hostiles . | . . . . Parts Fried . | . . . . Impact Corruptions . | . . . . Robots Melted . | . . . . Combat Hostiles . | . . . . Parts Melted 2 | . . 1 1 Heat Transferred 1184 | . . 814 370 Parts Sabotaged . | . . . . Parts Stolen . | . . . . Parts Stripped . | . . . . Power Chain Reactions 1 | . . . 1 Alert | -11 -10 -9 -9 ------- Run | Yrd Mat Mat Min Peak Influence 360 | . 86 360 182 Initial 62 | . . 35 62 Average 133 | . 24 225 119 Maximum Alert Level 1 | . . 1 . Low Security (%) 72 | 100 100 34 100 Level 1 27 | . . 65 . Level 2 . | . . . . Level 3 . | . . . . Level 4 . | . . . . Level 5 . | . . . . High Security . | . . . . Max Security . | . . . . Squads Dispatched 2 | . . 1 1 Investigation 1 | . . . 1 Extermination . | . . . . Reinforcement 1 | . . 1 . Assault . | . . . . Garrison . | . . . . Intercept . | . . . . Searches Triggered . | . . . . Construction Impeded . | . . . . Haulers Reinforced . | . . . . Active Scanning Responses . | . . . . Cargo Convoy Interrupts . | . . . . Stealth | -11 -10 -9 -9 --------- Run | Yrd Mat Mat Min Distress Signals 1 | . . 1 . Communications Jammed . | . . . . Distress Signals . | . . . . Times Spotted 29 | . 4 17 8 Peak Tracking Total 6 | . 3 6 4 Tactical Retreats 2 | . . 2 . Traps | -11 -10 -9 -9 ------- Run | Yrd Mat Mat Min Traps Triggered . | . . . . Indirectly . | . . . . Trap Hack Attempts . | . . . . Triggered . | . . . . Disarmed . | . . . . Reprogrammed . | . . . . Reused . | . . . . Traps Extracted . | . . . . Installed . | . . . . Triggered . | . . . . Machines | -11 -10 -9 -9 ---------- Run | Yrd Mat Mat Min Machines Disabled 2 | . . 2 . Max in Single Turn 1 | . . 1 . Machines Repaired . | . . . . Machines Dismantled . | . . . . Machines Sabotaged . | . . . . Overloaded Fab Kills . | . . . . Hacking | -11 -10 -9 -9 --------- Run | Yrd Mat Mat Min Machines Accessed 1 | . . . 1 Terminals . | . . . . Fabricators . | . . . . Repair Stations . | . . . . Recycling Units . | . . . . Scanalyzers . | . . . . Garrison Access . | . . . . Total Hacks 1 | . . . 1 Successful 1 | . . . 1 Failed . | . . . . Catastrophic . | . . . . Database Lockouts . | . . . . Manual . | . . . . Terminals . | . . . . Fabricators . | . . . . Repair Stations . | . . . . Recycling Units . | . . . . Scanalyzers . | . . . . Garrison Access . | . . . . Terminal Hacks 1 | . . . 1 Open Door 1 | . . . 1 Fabricator Hacks . | . . . . Repair Station Hacks . | . . . . Recycling Unit Hacks . | . . . . Scanalyzer . | . . . . Garrison Access Hacks . | . . . . Unauthorized Hacks . | . . . . Terminals . | . . . . Fabricators . | . . . . Repair Stations . | . . . . Recycling Units . | . . . . Scanalyzers . | . . . . Garrison Access . | . . . . Data Cores Recovered . | . . . . Used . | . . . . Hacking Detections . | . . . . Full Trace Events . | . . . . Feedback Events . | . . . . Feedback Blocked . | . . . . Robot Schematics Acquired . | . . . . Robots Built . | . . . . Authchips . | . . . . Time . | . . . . Total Robot Build Rating . | . . . . Part Schematics Acquired . | . . . . Parts Built . | . . . . Authchips . | . . . . Time . | . . . . Total Part Build Rating . | . . . . Parts Repaired . | . . . . Time . | . . . . Parts Recycled . | . . . . Recycled Matter . | . . . . Retrieved Matter . | . . . . Retrieved Components . | . . . . Parts Scanalyzed . | . . . . Part Schematics Acquired . | . . . . Parts Damaged . | . . . . Bothacking | -11 -10 -9 -9 ------------ Run | Yrd Mat Mat Min Used RIF Installer . | . . . . Robots Hacked . | . . . . Non-combat . | . . . . Combat . | . . . . Robot Hacks Applied . | . . . . Relay Couplers Released . | . . . . Fabnet Peak Effective % . | . . . . Robots Rewired . | . . . . Allies Hacked . | . . . . Hacks Repelled . | . . . . Allies | -11 -10 -9 -9 -------- Run | Yrd Mat Mat Min Total Allies . | . . . . Largest Group . | . . . . Highest-Rated Group . | . . . . Highest-Rated Ally . | . . . . Total Orders . | . . . . Ally Attacks . | . . . . Total Damage . | . . . . Kills . | . . . . Allies Corrupted . | . . . . Allies Melted . | . . . . Intel | -11 -10 -9 -9 ------- Run | Yrd Mat Mat Min Robot Analysis Total . | . . . . Derelict Logs Recovered 1 | . . . 1 Drone Launches . | . . . . Drone Recoveries . | . . . . Exploration | -11 -10 -9 -9 ------------- Run | Yrd Mat Mat Min Turns Passed 988 | 71 230 411 276 Spaces Moved 565 | 60 112 276 117 Core 19 | 6 . 13 . Treads 113 | . . . 113 Legs 30 | . . 30 . Wheels 403 | 54 112 233 4 Hover . | . . . . Flight . | . . . . Fastest Speed 50 | 50 90 90 93 Average Speed 107 | 89 90 98 157 Slowest Speed 160 | 100 90 150 160 Overloaded Moves . | . . . . Propulsion Burnouts . | . . . . Robots Hopped . | . . . . Cave-ins Triggered . | . . . . Exploration Rate (%) 21 | 4 23 31 28 Regions Visited 3 Branch Regions 1 Pre-discovered Areas . | . . . . Known Exits Taken . | . . . . Unknown Exits Taken 3 | 1 1 1 . Scrap Searched . | . . . . Spaces Dug . | . . . . Terrain Destroyed 5 | . . . 5 Melee . | . . . . Projectile . | . . . . AOE 5 | . . . 5 Terrain Rammed . | . . . . Walls Destroyed . | . . . . Machines Disabled . | . . . . Actions | -11 -10 -9 -9 --------- Run | Yrd Mat Mat Min Total 829 | 77 224 350 178 Wait 136 | . 102 . 34 Move 562 | 59 111 275 117 Hop . | . . . . Pick Up 35 | 12 2 15 6 Fast Attach 4 | . 1 3 . Attach 22 | 6 . 11 5 Detach . | . . . . Swap 5 | . . 5 . Drop 4 | . . 4 . Fire 61 | . 8 37 16 Melee . | . . . . Ram . | . . . . Kick . | . . . . Crush . | . . . . Escape Stasis . | . . . . Rewire . | . . . . Trap . | . . . . Miscellaneous . | . . . . Route ------- -11/Scrapyard -10/Materials (discovered 2 exits: [*Mat] / [*Min]) -9/Materials (discovered 2 exits: [*Mat] / *Min) -9/Mines History --------- Turn | Location | Event 8 | -11/Scrapyard | Discovered new exit (range 16) 72 | -11/Scrapyard | Entered Materials 279 | -10/Materials | Discovered new exit (range 8) 296 | -10/Materials | Discovered new exit (range 6) 302 | -10/Materials | Entered another Materials area 302 | -9/Materials | Evolved 2 slots: Propulsion x1, Utility x1 333 | -9/Materials | Build established: Mutant 458 | -9/Materials | Core integrity fell below 50% 479 | -9/Materials | Core integrity fell below 20% 515 | -9/Materials | Lost 11 parts (2p3n1u5w) 539 | -9/Materials | Discovered new exit (range 13) 699 | -9/Materials | Discovered new exit (range 15) 713 | -9/Materials | Entered Mines 715 | -9/Mines | Met a Derelict bent on vengeance 757 | -9/Mines | Learned 2 Materials zone layouts 768 | -9/Mines | Lost 5 parts (1p3n1w) 817 | -9/Mines | Met a Derelict shopkeep closing up shop 989 | -9/Mines | Destroyed by G-47 Trooper with Particle Gun Last Messages --------------- 00819_ ALERT: Derelict activity detected in mines. Dispatching investigation squad. 00867_ Acquired Greatsword. 00870_ Acquired Remote Datajack. 00872_ Acquired Plasma Cannon. 00878_ Acquired Imp. Cooling System. 00881_ Acquired Coolant Injector. 00905_ BW-776(g): "UNAWARE KILLED MY BEST FRIEND! VENGEANCE!" 00957_ Acquired 35 matter. 00957_ K-01 Serf collects debris. 00958_ R-06 Scavenger collects Sml. Laser. 00960_ Acquired Ion Engine. 00962_ K-01 Serf collects debris. 00962_ R-06 Scavenger collects Aluminum Leg. 00967_ Critical hit (Burn: +37). 00969_ S-10 Pest destroyed. 00969_ Switching to secondary target: S-10 Pest. 00969_ S-10 Pest destroyed. 00982_ G-34 Mercenary destroyed. 00982_ Switching to secondary target: G-47 Trooper. Map ----- +----------------------------------------------------+ | ????## ##???###?????????????????????????????? | | ##### ##??????????????????????????????????? | | #??????????????????????????????????? | | #??????????????????????????????????? | | ###### ##??????????????????????????????????? | | #????## #???????????????????????????????????? | | #?????#### #???????????????????????????????????? | | #????????## ##??????????????????????????????????? | | ##???????## ##?????????????????????????????????? | | #??????## #?????????????????????????????????? | | #?????## #?????????????????????????????????? | | #????## ##????????????????????????????????? | | #????# ##???????????????????????????????? | | #????# #???????????????????????????????? | | #????# #???????????????????????????????? | | ##????## ######??????????????????????????? | | ???????# #??????????????????????????? | | ???????# # #??????????????????????????? | | ???????# ######### #??????????????????????????? | | ???????## #????????# #??????????????????????????? | | ????????###?????????# #??????????????????????????? | | ????????????????????# #####??????????? ?????????? | | ????????????????????# #????????? % ?????????? | | ????????????????????# u #??????? = ????????? | | ????????????????????#### !#????? ???????? | | ???????????????????????# @#### *% ???????? | | ???????????????????????#=%%= !*= ???????? | | ???????????????????????#=*g%%=%= ???????? | | ???????????????????????######## ## ???????? | | ?????????????????????????????????#???????????????? | | ?????????????????????????????????????????????????? | | ?????????????????????????????????????????????????? | | ?????????????????????????????????????????????????? | | ?????????????????????????????????????????????????? | | ?????????????????????????????????????????????????? | | ?????????????????????????????????????????????????? | | ?????????????????????????????????????????????????? | | ?????????????????????????????????????????????????? | | ?????????????????????????????????????????????????? | | ?????????????????????????????????????????????????? | | ?????????????????????????????????????????????????? | | ?????????????????????????????????????????????????? | | ?????????????????????????????????????????????????? | | ?????????????????????????????????????????????????? | | ?????????????????????????????????????????????????? | | ?????????????????????????????????????????????????? | | ?????????????????????????????????????????????????? | | ?????????????????????????????????????????????????? | | ?????????????????????????????????????????????????? | | ?????????????????????????????????????????????????? | +----------------------------------------------------+ Best States ------------- Heat Dissipation 48 Energy Generation 12 Energy Capacity 265 Matter Stores 300 Matter Capacity 300 Sight Range 16 Robot Scan Range 14 Terrain Scan Density 10 Evasion (%) 45 Targeting Accuracy 5 Recoil Reduction 3 Item Schematics ----------------- None Robot Schematics ------------------ None Fabricated ------------ Nothing Alien Tech Used ----------------- None Achievements -------------- None Challenges ------------ None Game ------ Seed SalvagingActuatorPerforator Manual? 0 Play Time 00:11:07 Cumulative 177.2 hours Start 2024.10.10 @ 12:36:35 End 2024.10.10 @ 12:56:53 Sessions 1 Manual Loads 0 Difficulty Rogue Special Mode None Game No. 241 Rogue 241 Adventurer 0 Explorer 0 Win Type - Total 0 Types 0/0/0/0/0/0/0/0/0 Lore% 32 Gallery% 62 Achievement% 41 Wizard Run 0 Options --------- Layout 0 ASCII 0 Keyboard 0 Movement Mouse Keybinds 0 Fullscreen 1 Font 24/Smallcaps Map View 76x50 Zoom Use 0% Tactical HUD 1 Map Filters NONE Filters NONE Steam 1 RUN: 22a58653-0d9e-43af-8806-bac516f2cb41